Cogmind - Beta 10.2 @@@ ROGUE MODE // 2021.07.13 @ 19:48:38 Player: Dysiode Result: Destroyed by Dirty Bomb Trap Performance ------------- Evolutions (0) 0 Regions Visited (4) 800 Robots Destroyed (58) 290 Value Destroyed (1936) 1936 Prototype IDs (3) 60 Alien Tech Used (0) 0 Bonus (334) 334 TOTAL SCORE: 3420 Bonus ------- Follower Combat Kills 49 Aligned with FarCom 300 Friendly Fire -15 Cogmind --------- Core Integrity 0/250 Matter 295/300 Energy 156/160 System Corruption 12% Temperature Cool (2) Movement Walking (150) Ox1 Location -9/Mines Parts ------- > --- POWER (1) -------- Light Nuclear Core > --- PROPULSION (2) --- Carbon-fiber Leg Carbon-fiber Leg > --- UTILITY (2) ------ High-capacity Storage Unit Light Armor Plating > --- WEAPON (2) ------- AWS/Gauss > --- INVENTORY (12) --- Deuterium Engine Carbon-fiber Leg Medium Battery (200) Structural Scanner Terrain Scanner Transport Network Coupler Skeleton Box Latent Energy Streamer Gauss Rifle Shock Bomb Launcher Grenade Launcher Katana Peak State ------------ > --- POWER ------------ Deuterium Engine > --- PROPULSION ------- Carbon-fiber Leg Carbon-fiber Leg > --- UTILITY ---------- Large Storage Unit Terrain Scanner > --- WEAPON ----------- AWS/Gauss > --- INVENTORY -------- Light Ion Engine Light Nuclear Core Medium Battery Structural Scanner Transport Network Coupler Skeleton Box Latent Energy Streamer Shock Bomb Launcher Grenade Launcher Katana [Rating: 30] Favorites ----------- Power Deuterium Engine Engine Deuterium Engine Power Core Light Nuclear Core Propulsion Aluminum Leg Treads Light Treads Leg Aluminum Leg Utility Large Storage Unit Device Terrain Scanner Storage Large Storage Unit Hackware Hacking Suite Protection Light Armor Plating Weapon Mining Claw Energy Gun EM Pulse Gun Energy Cannon Latent Energy Streamer Ballistic Gun AWS/Gauss Ballistic Cannon Slug Cannon Launcher Shock Bomb Launcher Slashing Weapon Mining Claw Build | -11 -10 -10 -10 -9 ------- Run | Scr Mat Min Exi Min Slots Evolved . | . . . . . Power . | . . . . . Propulsion . | . . . . . Utility . | . . . . . Weapon . | . . . . . Parts Attached 44 | 5 13 8 18 . Power 5 | 1 2 1 1 . Engine 3 | 1 1 1 . . Core 2 | . 1 . 1 . Reactor . | . . . . . Propulsion 14 | 2 4 3 5 . Treads 1 | . 1 . . . Leg 13 | 2 3 3 5 . Wheel . | . . . . . Hover . | . . . . . Flight . | . . . . . Utility 7 | 1 2 . 4 . Device 2 | . . . 2 . Storage 3 | 1 1 . 1 . Processor . | . . . . . Hackware 1 | . 1 . . . Protection 1 | . . . 1 . Artifact . | . . . . . Weapon 18 | 1 5 4 8 . Energy Gun 1 | 1 . . . . Energy Cannon 3 | . . . 3 . Ballistic Gun 6 | . 2 . 4 . Ballistic Cannon 1 | . . 1 . . Launcher 3 | . . 2 1 . Special Weapon . | . . . . . Impact Weapon . | . . . . . Slashing Weapon 4 | . 3 1 . . Piercing Weapon . | . . . . . Special Melee Weapon . | . . . . . Unidentified Prototypes 3 | . . . 3 . Parts Lost 4 | . 4 . . . Power 1 | . 1 . . . Propulsion 2 | . 2 . . . Utility . | . . . . . Weapon 1 | . 1 . . . Highest Loss Streak 2 | . 2 . . . Average Slot Usage (%) 93 | . 92 99 88 85 Engine 11 | . 11 11 10 . Core 2 | . 1 1 3 14 Leg 27 | . 26 28 28 28 Device 2 | . . . 6 . Storage 14 | . 14 14 14 14 Hackware 9 | . 9 14 3 . Protection 1 | . . . 2 14 Energy Gun 1 | . 4 . . . Ballistic Gun 5 | . 6 . 9 14 Ballistic Cannon 2 | . . 7 . . Launcher 3 | . . 5 3 . Slashing Weapon 11 | . 15 14 3 . Naked Turns . | . . . . . Heaviest Build 50 | 11 25 34 50 50 Greatest Support 30 | 20 20 20 30 30 Greatest Overweight (x) 2 | 1 1 1 2 1 Average Overweight (x) . | . . 1 1 1 Largest Inventory Capacity 12 | 6 10 10 12 12 Average Capacity 9 | 5 6 10 10 12 Most Carried 12 | 5 9 10 12 12 Average Carried 8 | 2 4 9 9 12 Final Capacity 12 | 6 10 10 12 12 Final Carried 12 | 4 9 10 12 12 Class Distribution -------------------- 78% | Mutant 21% | Scavenger-Mutant Dominant Class ---------------- Mutant | -10/Materials Mutant | -10/Mines Mutant | -10/Exiles Scavenger-Mutant | -9/Mines Resources | -11 -10 -10 -10 -9 ----------- Run | Scr Mat Min Exi Min Matter Collected 786 | 186 230 166 181 23 Remotely . | . . . . . Salvage Created 2222 | . 627 312 1239 44 Parts 154 | . 42 30 77 5 Haulers Intercepted 1 | . 1 . . . Recyclers Shooed . | . . . . . Parts Field Recycled . | . . . . . Retrieved Matter . | . . . . . Parts Self-Destructed . | . . . . . Prevented . | . . . . . Kills | -11 -10 -10 -10 -9 ------- Run | Scr Mat Min Exi Min Combat Hostiles Destroyed 46 | . 11 4 28 3 Melee 5 | . 4 1 . . Guns 34 | . 6 . 25 3 Cannons 1 | . . 1 . . AOE 5 | . . 2 3 . Classes Destroyed 12 | . 5 3 4 . Worker 3 | . 2 1 . . Builder 3 | . . 3 . . Hauler 1 | . 1 . . . Recycler 1 | . . 1 . . Operator 2 | . 2 . . . Watcher 2 | . 2 . . . Swarmer 4 | . . 1 . 3 Grunt 27 | . 11 3 13 . Brawler 2 | . . . 2 . Duelist 1 | . . . 1 . Hunter 6 | . . . 6 . Programmer 5 | . . . 5 . Thug 1 | . . . 1 . Best Kill Streak 16 | . 5 2 16 3 Combat Bots Only 16 | . 2 2 16 3 Max Kills in Single Turn 2 | . 1 2 2 2 Gunslinging . | . . . . . Exploded 2 | . . 1 2 . Melee 1 | . 1 1 . . Uniques/NPCs Destroyed . | . . . . . Combat | -11 -10 -10 -10 -9 -------- Run | Scr Mat Min Exi Min Damage Taken 1522 | . 749 92 574 107 Core 322 | . 147 19 77 79 Absorbed by Shields . | . . . . . Core Remaining (%) 100 | 100 . . . . Volleys Fired 48 | . 40 5 3 . Largest 2 | . 2 2 1 . Hottest 84 | . 60 84 60 . Shots Fired 173 | . 67 7 93 6 Gun 163 | . 67 . 90 6 Cannon 4 | . . 2 2 . Launcher 6 | . . 5 1 . Special . | . . . . . Kinetic 137 | . 39 2 90 6 Thermal . | . . . . . Explosive . | . . . . . Electromagnetic 36 | . 28 5 3 . Robot Hit Streak 13 | . 6 3 13 2 Robot Miss Streak 4 | . 4 2 3 2 Penetration Max 1 | . . . 1 . Secondary Targets 1 | . 1 . . . Max Gunslinging Chain 1 | . 1 . . . Autonomous 96 | . . . 90 6 Shots Hit Robots 151 | . 63 14 71 3 Core Hits 75 | . 28 10 34 3 Critical Hits 1 | . . . 1 . Critical Kills 1 | . . . 1 . Critical Parts Destroyed . | . . . . . Melee Attacks 42 | . 31 11 . . Impact . | . . . . . Slashing 42 | . 31 11 . . Piercing . | . . . . . Sneak Attacks 13 | . 6 7 . . Combat Hostiles . | . . . . . Follow-up Attacks 2 | . 2 . . . Damage Inflicted 4821 | . 1192 954 2565 110 Guns 2683 | . 400 . 2173 110 Cannons 29 | . . 21 8 . Explosions 550 | . . 166 384 . Melee 1559 | . 792 767 . . Ramming . | . . . . . Kinetic 2471 | . 167 21 2173 110 Thermal . | . . . . . Explosive . | . . . . . Electromagnetic 791 | . 233 166 392 . Impact . | . . . . . Slashing 1559 | . 792 767 . . Piercing . | . . . . . Highest Corruption 11 | . 3 4 11 11 Average Corruption 4 | . 2 3 6 11 Corruption Purged . | . . . . . Effects 51 | . 7 21 21 2 Message Errors 13 | . 1 5 7 . Matter Fused 12 | . 2 6 3 1 Heat Flow Errors 5 | . 1 2 2 . Energy Discharges 5 | . . 2 3 . Parts Rejected 1 | . . 1 . . Data Loss (minor) 6 | . 1 2 3 . Data Loss (major) 1 | . . . . 1 Misdirections 2 | . . . 2 . Targeting Errors 6 | . 2 3 1 . Overload Shots . | . . . . . Overflow Damage 253 | . . 248 5 . Projectiles . | . . . . . Explosions 5 | . . . 5 . Melee 248 | . . 248 . . Knockbacks . | . . . . . Impact . | . . . . . Kinetic . | . . . . . Secondary . | . . . . . Self-Inflicted Damage 16 | . . 16 . . Shots 1 | . . 1 . . Rammed . | . . . . . Targets Rammed . | . . . . . Kicked . | . . . . . Crushed . | . . . . . Highest Temperature 242 | . 242 177 153 . Average Temperature 58 | . 53 69 62 . Received Heat Transfer 453 | . 414 27 12 . Siege Activations . | . . . . . Robots Corrupted 1 | . 1 . . . Combat Hostiles 1 | . 1 . . . Parts Fried 5 | . 3 . 2 . Impact Corruptions . | . . . . . Robots Melted . | . . . . . Combat Hostiles . | . . . . . Parts Melted . | . . . . . Heat Transferred . | . . . . . Parts Sabotaged . | . . . . . Parts Stolen . | . . . . . Parts Stripped . | . . . . . Power Chain Reactions 3 | . . . 3 . Missiles Intercepted . | . . . . . Latent Energy Used 400 | . . . 400 . LE Corruption 6 | . . . 6 . Alert | -11 -10 -10 -10 -9 ------- Run | Scr Mat Min Exi Min Peak Influence 274 | . 274 209 . 115 Initial 68 | . . 68 . . Average 111 | . 138 96 . 110 Maximum Alert Level 1 | . 1 1 . . Low Security (%) 81 | 100 71 86 . 100 Level 1 18 | . 28 13 . . Level 2 . | . . . . . Level 3 . | . . . . . Level 4 . | . . . . . Level 5 . | . . . . . High Security . | . . . . . Max Security . | . . . . . Squads Dispatched 6 | . 5 1 . . Investigation 2 | . 1 1 . . Extermination . | . . . . . Reinforcement 4 | . 4 . . . Assault . | . . . . . Garrison . | . . . . . Intercept . | . . . . . Construction Impeded . | . . . . . Haulers Reinforced . | . . . . . Stealth | -11 -10 -10 -10 -9 --------- Run | Scr Mat Min Exi Min Distress Signals 2 | . 2 . . . Communications Jammed . | . . . . . Distress Signals . | . . . . . Times Spotted 51 | . 23 6 19 3 Peak Tracking Total 5 | . 5 3 5 3 Tactical Retreats 1 | . . 1 . . Traps | -11 -10 -10 -10 -9 ------- Run | Scr Mat Min Exi Min Traps Triggered 4 | . 3 . . 1 Indirectly . | . . . . . Trap Hack Attempts . | . . . . . Triggered . | . . . . . Disarmed . | . . . . . Reprogrammed . | . . . . . Reused . | . . . . . Traps Extracted . | . . . . . Installed . | . . . . . Triggered 1 | . 1 . . . Machines | -11 -10 -10 -10 -9 ---------- Run | Scr Mat Min Exi Min Machines Disabled 13 | . 1 2 8 2 Max in Single Turn 2 | . 1 2 2 1 Machines Sabotaged . | . . . . . Garrisons Compromised . | . . . . . Overloaded Fab Kills . | . . . . . Fab Network Shutdowns . | . . . . . Hacking | -11 -10 -10 -10 -9 --------- Run | Scr Mat Min Exi Min Machines Accessed 2 | . 1 1 . . Terminals 1 | . 1 . . . Fabricators . | . . . . . Repair Stations . | . . . . . Recycling Units . | . . . . . Scanalyzers . | . . . . . Garrison Access . | . . . . . Total Hacks 2 | . 1 1 . . Successful 2 | . 1 1 . . Failed . | . . . . . Catastrophic . | . . . . . Database Lockouts . | . . . . . Manual 2 | . 1 . 1 . Terminals 1 | . 1 . . . Fabricators . | . . . . . Repair Stations . | . . . . . Recycling Units . | . . . . . Scanalyzers . | . . . . . Garrison Access . | . . . . . Terminal Hacks 2 | . 1 1 . . Open Door 1 | . . 1 . . Zone Layout 1 | . 1 . . . Fabricator Hacks . | . . . . . Repair Station Hacks . | . . . . . Recycling Unit Hacks . | . . . . . Scanalyzer . | . . . . . Garrison Access Hacks . | . . . . . Unauthorized Hacks . | . . . . . Terminals . | . . . . . Fabricators . | . . . . . Repair Stations . | . . . . . Recycling Units . | . . . . . Scanalyzers . | . . . . . Garrison Access . | . . . . . Data Cores Recovered . | . . . . . Used . | . . . . . Hacking Detections . | . . . . . Full Trace Events . | . . . . . Feedback Events . | . . . . . Feedback Blocked . | . . . . . Robot Schematics Acquired . | . . . . . Robots Built . | . . . . . Matter . | . . . . . Time . | . . . . . Total Robot Build Rating . | . . . . . Part Schematics Acquired . | . . . . . Parts Built . | . . . . . Matter . | . . . . . Time . | . . . . . Total Part Build Rating . | . . . . . Parts Repaired . | . . . . . Time . | . . . . . Parts Recycled . | . . . . . Recycled Matter . | . . . . . Retrieved Matter . | . . . . . Retrieved Components . | . . . . . Parts Scanalyzed . | . . . . . Part Schematics Acquired . | . . . . . Parts Damaged . | . . . . . Bothacking | -11 -10 -10 -10 -9 ------------ Run | Scr Mat Min Exi Min Used RIF Installer . | . . . . . Robots Hacked . | . . . . . Non-combat . | . . . . . Combat . | . . . . . Robot Hacks Applied . | . . . . . Relay Couplers Released . | . . . . . Robots Rewired . | . . . . . Allies Hacked . | . . . . . Hacks Repelled . | . . . . . Allies | -11 -10 -10 -10 -9 -------- Run | Scr Mat Min Exi Min Total Allies 2 | . . 2 . . Largest Group 2 | . . 2 2 . Highest-Rated Group 45 | . . 45 45 . Highest-Rated Ally 31 | . . 31 31 . Total Orders . | . . . . . Ally Attacks 8 | . . 8 . . Total Damage 125 | . . 125 . . Kills 3 | . . 3 . . Allies Corrupted . | . . . . . Allies Melted . | . . . . . Intel | -11 -10 -10 -10 -9 ------- Run | Scr Mat Min Exi Min Robot Analysis Total . | . . . . . Derelict Logs Recovered 1 | . . 1 . . Drone Launches . | . . . . . Drone Recoveries . | . . . . . Exploration | -11 -10 -10 -10 -9 ------------- Run | Scr Mat Min Exi Min Turns Passed 2307 | 64 706 798 664 75 Spaces Moved 1315 | 40 348 476 400 51 Core 3 | 3 . . . . Treads 4 | . 4 . . . Legs 1308 | 37 344 476 400 51 Wheels . | . . . . . Hover . | . . . . . Flight . | . . . . . Fastest Speed 50 | 50 120 150 150 150 Average Speed 142 | 126 124 150 150 150 Slowest Speed 180 | 150 160 150 180 150 Overloaded Moves . | . . . . . Propulsion Burnouts . | . . . . . Robots Hopped . | . . . . . Cave-ins Triggered . | . . . . . Exploration Rate (%) 46 | 5 60 88 66 13 Regions Visited 4 Branch Regions 3 Pre-discovered Areas . | . . . . . Known Exits Taken . | . . . . . Unknown Exits Taken 4 | 1 1 1 1 . Scrap Searched 3 | . . 2 . 1 Spaces Dug . | . . . . . Terrain Destroyed 85 | . . 1 80 4 Melee . | . . . . . Projectile 17 | . . 1 12 4 AOE 68 | . . . 68 . Terrain Rammed . | . . . . . Walls Destroyed . | . . . . . Machines Disabled . | . . . . . Actions | -11 -10 -10 -10 -9 --------- Run | Scr Mat Min Exi Min Total 1612 | 53 501 538 469 51 Wait 90 | . 59 24 7 . Move 1311 | 39 347 475 399 51 Hop . | . . . . . Pick Up 46 | 9 11 7 19 . Fast Attach 2 | . 1 1 . . Attach 21 | 5 6 1 9 . Detach 3 | . . . 3 . Swap 21 | . 6 6 9 . Drop 31 | . 3 8 20 . Fire 48 | . 40 5 3 . Melee 39 | . 28 11 . . Ram . | . . . . . Kick . | . . . . . Crush . | . . . . . Escape Stasis . | . . . . . Rewire . | . . . . . Trap . | . . . . . Miscellaneous . | . . . . . Route ------- -11/Scrapyard -10/Materials (discovered 3 exits: [*Mat] / *Min x2) -10/Mines (discovered 2 exits: [*Mat] / *Exi) -10/Exiles -9/Mines History --------- Turn | Location | Event 34 | -11/Scrapyard | Discovered new exit (range 15) 65 | -11/Scrapyard | Entered Materials 312 | -10/Materials | Build established: Mutant 320 | -10/Materials | Discovered new exit (range 9) 346 | -10/Materials | Discovered new exit (range 16) 586 | -10/Materials | Core integrity fell below 50% 615 | -10/Materials | Discovered new exit (range 8) 771 | -10/Materials | Entered Mines 822 | -10/Mines | A weapon hastily lodged in a ceiling crevice suddenly fell to the ground 881 | -10/Mines | Met a Derelict shopkeep closing up shop 1093 | -10/Mines | Learned 4 Materials zone layouts 1249 | -10/Mines | Discovered new exit (range 5) 1543 | -10/Mines | Deemed a non-threat by the Exiles lab entrance 1543 | -10/Mines | Discovered new exit (range 5) 1569 | -10/Mines | Entered Exiles 1569 | -10/Exiles | Accompanied by 2 allies 1599 | -10/Exiles | Led the pair of lost Derelicts to a safe place 1607 | -10/Exiles | Met 8R-AWN 1632 | -10/Exiles | Met EX-HEX 1674 | -10/Exiles | Met EX-BIN 1694 | -10/Exiles | Aligned with FarCom system 1695 | -10/Exiles | Given EX-Vault access code 1730 | -10/Exiles | Opened EX-Vault 1741 | -10/Exiles | Found Prototype Ballistic Gun 1742 | -10/Exiles | Identified AWS/Gauss 1751 | -10/Exiles | Found Prototype Energy Cannon 1752 | -10/Exiles | Identified Latent Energy Streamer 1758 | -10/Exiles | Found Prototype Device 1759 | -10/Exiles | Identified Skeleton Box 1806 | -10/Exiles | Exiles lab attacked by MAIN.C 1951 | -10/Exiles | P-60 Hacker assimilated allied XV-UKR(g) 1968 | -10/Exiles | Core integrity fell below 20% 2001 | -10/Exiles | System corruption reached 10% 2037 | -10/Exiles | Destroyed 16 combat bots 2087 | -10/Exiles | Destroyed 7 combat bots 2214 | -10/Exiles | Discovered new exit (range 14) 2233 | -10/Exiles | Stole three prototypes: Skeleton Box, Latent Energy Streamer, AWS/Gauss 2233 | -10/Exiles | Entered Mines 2308 | -9/Mines | Destroyed by Dirty Bomb Trap Last Messages --------------- Slug penetrates S-10 Pest. S-10 Pest destroyed. GM-J5T: "Oh no, it's like what happened to the Exiles when they were wandering homeless, only there's no Warlord to save us!" System corrupted: Matter fused (-8). A derelict is hurriedly installing traps. TL-E52(g): "Hehe, this'll put a wrench in their mining defense operations..." TL-E52(g) slips into the shadows. System corrupted: Substantial component data lost. Searching scrap... Found Lgt. Armor Plating. Found EM Pulse Gun. Found Lgt. Ion Engine. Found Lrg. Storage Unit. Found 23 Matter. Acquired 23 matter. System corruption misinterpreted. Triggered Dirty Bomb Trap. An explosion rips through the floor. Map ----- +----------------------------------------------------+ | ???# *%=% #?????????? | | ???# """ "" #?????????? | | ???# """ """ #?????????? | | ???# """ """ #?????????? | | ???# #?????????? | | ???#### ############?????????? | | ??????# #????????????????????? | | ?????## #????????????????????? | | ?????# #????????????????????? | | ?????# ##????????????????????? | | ?????# #?????????????????????? | | ?????# #?????????????????????? | | ?????# #?????????????????????? | | ?????# #?????????????????????? | | ?????# #?????????????????????? | | ?????# #?????????????????????? | | ?????# #?????????????????????? | | ?????# #?????????????????????? | | ?????# #?????????????????????? | | ?????# #?????????????????????? | | ?????# ########??????????????? | | ?????# #???????????? | | ?????# ########??????????????? | | ?????# #?????????????????????? | | ?##### ##????????????????????? | | ?# @ ##?????????????g?????? | | ?# ## #???????????????????? | | ?#^ #z ^#??????????????l????? | | ?# # # #???????????????????? | | ?#*#^# ^#???????????????????? | | ?# [! #???????????????????? | | ?##! #???????????????????? | | ??########???????????????????? | | ?????????????????????????????? | | ?????????????????????????????? | | ?????????????????????????????? | | ?????????????????????????????? | | ?????????????????????????????? | | ?????????????????????????????? | | ?????????????????????????????? | | ?????????????????????????????? | | ?????????????????????????????? | | ?????????????????????????????? | | ?????????????????????????????? | | ?????????????????????????????? | | ?????????????????????????????? | | ?????????????????????????????? | | ?????????????????????????????? | | ?????????????????????????????? | | ?????????????????????????????? | +----------------------------------------------------+ Best States ------------- Heat Dissipation 25 Energy Generation 14 Energy Capacity 275 Matter Stores 300 Matter Capacity 300 Sight Range 16 Terrain Scan Range 14 Terrain Scan Density 10 Armor Coverage 150 Evasion (%) 40 Recoil Reduction 1 Offensive Hacking 10 Item Schematics ----------------- None Robot Schematics ------------------ None Fabricated ------------ Nothing Alien Tech Used ----------------- None Achievements -------------- None Challenges ------------ None Game ------ Seed AntigravFortressMatter Manual? 0 Play Time 00:26:25 Cumulative 9.9 hours Start 2021.07.13 @ 19:20:53 End 2021.07.13 @ 19:48:38 Sessions 1 Manual Loads 0 Difficulty Rogue Special Mode None Game No. 8 Rogue 8 Adventurer 0 Explorer 0 Win Type - Total 0 Types 0/0/0/0/0/0/0/0/0 Lore% 16 Gallery% 18 Achievement% 14 Wizard Run 0 Options --------- ASCII 0 Keyboard 0 Movement Mouse Keybinds 0 Fullscreen 2 Font 24/Terminus Map View 76x50 Tactical HUD 0 Map Filters NONE Filters NONE Steam 1 RUN: 6650ed5a-0630-4ced-8a29-3e2eac455ba5